[Event "Championnat d'Europe Rapide"]
[Date "2024.12.08"]
[White "Guliyev, Namig"]
[Black "Nevednichy, Vladislav"]
[WhiteElo "2484"]
[BlackElo "2451"]
[Round "10.33"]
[Result "1-0"]
[TimeControl "900+10"]

1. e4 {[%emt 00:00:04] [%clk 00:15:16]} c5 {[%emt 00:00:07] [%clk 00:15:14]} 2.
Nf3 {[%emt 00:00:02] [%clk 00:15:23]} d6 {[%emt 00:00:03] [%clk 00:15:22]} 3.
Bb5+ {[%emt 00:00:03] [%clk 00:15:29]} Nd7 {[%emt 00:00:11] [%clk 00:15:21]} 4.
d4 {[%emt 00:00:05] [%clk 00:15:35]} cxd4 {[%emt 00:00:05] [%clk 00:15:26]} 5.
Qxd4 {[%emt 00:00:02] [%clk 00:15:42]} a6 {[%emt 00:00:16] [%clk 00:15:21]} 6.
Bxd7+ {[%emt 00:00:06] [%clk 00:15:45]} Bxd7 {[%emt 00:00:02] [%clk 00:15:30]}
7. Bg5 {[%emt 00:01:18] [%clk 00:14:36]} h6 {[%emt 00:00:50] [%clk 00:14:50]} 8.
Bh4 {[%emt 00:00:02] [%clk 00:14:44]} Rc8 {[%emt 00:00:12] [%clk 00:14:49]} 9.
Nc3 {[%emt 00:00:05] [%clk 00:14:49]} e5 {[%emt 00:00:47] [%clk 00:14:12]} 10.
Qd3 {[%emt 00:01:25] [%clk 00:13:34]} g5 {[%emt 00:00:08] [%clk 00:14:13]} 11.
Bg3 {[%emt 00:00:04] [%clk 00:13:40]} Nf6 {[%emt 00:00:10] [%clk 00:14:13]} 12.
Nd2 {[%emt 00:02:04] [%clk 00:11:46]} Qc7 {[%emt 00:02:12] [%clk 00:12:11]} 13.
f3 {[%emt 00:03:18] [%clk 00:08:38]} b5 {[%emt 00:01:34] [%clk 00:10:48]} 14. a3
{[%emt 00:00:04] [%clk 00:08:43]} Be6 {[%emt 00:00:47] [%clk 00:10:11]} 15. Nf1
{[%emt 00:00:09] [%clk 00:08:44]} Qc4 {[%emt 00:01:14] [%clk 00:09:07]} 16. Qd2
{[%emt 00:01:12] [%clk 00:07:43]} Be7 {[%emt 00:01:03] [%clk 00:08:14]} 17. Ne3
{[%emt 00:01:45] [%clk 00:06:07]} Qd4 {[%emt 00:00:16] [%clk 00:08:08]} 18. Qe2
{[%emt 00:00:32] [%clk 00:05:45]} Rxc3 {[%emt 00:00:40] [%clk 00:07:38]} 19.
bxc3 {[%emt 00:00:02] [%clk 00:05:54]} Qxc3+ {[%emt 00:00:01] [%clk 00:07:46]}
20. Kf2 {[%emt 00:00:02] [%clk 00:06:01]} O-O {[%emt 00:02:16] [%clk 00:05:41]}
21. Rhd1 {[%emt 00:00:09] [%clk 00:06:02]} h5 {[%emt 00:01:26] [%clk 00:04:25]}
22. Kg1 {[%emt 00:00:29] [%clk 00:05:43]} h4 {[%emt 00:00:32] [%clk 00:04:03]}
23. Be1 {[%emt 00:00:02] [%clk 00:05:50]} Qc5 {[%emt 00:00:07] [%clk 00:04:07]}
24. Bf2 {[%emt 00:00:05] [%clk 00:05:55]} Qc6 {[%emt 00:00:09] [%clk 00:04:08]}
25. Qd2 {[%emt 00:00:33] [%clk 00:05:32]} Qb7 {[%emt 00:01:02] [%clk 00:03:16]}
26. a4 {[%emt 00:00:20] [%clk 00:05:22]} b4 {[%emt 00:00:35] [%clk 00:02:51]}
27. a5 {[%emt 00:01:14] [%clk 00:04:19]} Rd8 {[%emt 00:00:29] [%clk 00:02:31]}
28. c4 {[%emt 00:00:19] [%clk 00:04:10]} bxc3 {[%emt 00:00:19] [%clk 00:02:23]}
29. Qxc3 {[%emt 00:00:03] [%clk 00:04:17]} h3 {[%emt 00:00:21] [%clk 00:02:12]}
30. Rab1 {[%emt 00:00:13] [%clk 00:04:14]} Qa8 {[%emt 00:00:33] [%clk 00:01:49]}
31. g4 {[%emt 00:00:17] [%clk 00:04:06]} Rc8 {[%emt 00:00:55] [%clk 00:01:04]}
32. Qd2 {[%emt 00:00:15] [%clk 00:04:01]} Rd8 {[%emt 00:00:25] [%clk 00:00:50]}
33. Rb6 {[%emt 00:01:08] [%clk 00:03:02]} d5 {[%emt 00:00:32] [%clk 00:00:28]}
34. Nf5 {[%emt 00:00:02] [%clk 00:03:11]} Bxf5 {[%emt 00:00:06] [%clk 00:00:32]}
35. Qxg5+ {[%emt 00:00:02] [%clk 00:03:19]} Bg6 {[%emt 00:00:04] [%clk
00:00:37]} 36. Rxf6 {[%emt 00:00:05] [%clk 00:03:23]} Qb7 {[%emt 00:00:17] [%clk
00:00:31]} 37. Rxg6+ {[%emt 00:00:10] [%clk 00:03:23]} fxg6 {[%emt 00:00:01]
[%clk 00:00:40]} 38. Qxg6+ {[%emt 00:00:02] [%clk 00:03:31]} Kh8 {[%emt
00:00:07] [%clk 00:00:42]} 39. exd5 {[%emt 00:00:31] [%clk 00:03:10]} Qb3 {[%emt
00:00:09] [%clk 00:00:44]} 40. Qd3 {[%emt 00:00:26] [%clk 00:02:53]} Qxd3 {[%emt
00:00:06] [%clk 00:00:48]} 41. Rxd3 {[%emt 00:00:01] [%clk 00:03:02]} Kg7 {[%clk
00:00:58]} 42. Bb6 {[%emt 00:00:08] [%clk 00:03:04]} Rd7 {[%emt 00:00:04] [%clk
00:01:04]} 43. Kf2 {[%emt 00:00:06] [%clk 00:03:08]} Bd6 {[%emt 00:00:04] [%clk
00:01:10]} 44. Rc3 {[%emt 00:00:38] [%clk 00:02:39]} Bb8 {[%emt 00:00:19] [%clk
00:01:02]} 45. Rc8 {[%emt 00:00:05] [%clk 00:02:44]} Bd6 {[%emt 00:00:03] [%clk
00:01:09]} 46. Rd8 {[%emt 00:00:08] [%clk 00:02:45]} Rxd8 {[%emt 00:00:02] [%clk
00:01:18]} 47. Bxd8 {[%emt 00:00:02] [%clk 00:02:53]} e4 {[%emt 00:00:17] [%clk
00:01:12]} 48. fxe4 {[%emt 00:00:02] [%clk 00:03:00]} Bxh2 {[%emt 00:00:01]
[%clk 00:01:21]} 49. g5 {[%emt 00:00:14] [%clk 00:02:56]} Kg6 {[%emt 00:00:18]
[%clk 00:01:12]} 50. Bf6 {[%emt 00:00:03] [%clk 00:03:03]} Bc7 {[%emt 00:00:02]
[%clk 00:01:21]} 51. e5 {[%emt 00:00:08] [%clk 00:03:05]} Bxa5 {[%emt 00:00:06]
[%clk 00:01:24]} 52. d6 {[%emt 00:00:12] [%clk 00:03:02]} Be1+ {[%emt 00:00:06]
[%clk 00:01:28]} 53. Kg1 {[%emt 00:00:12] [%clk 00:03:00]} Ba5 {[%emt 00:00:05]
[%clk 00:01:34]} 54. Kh2 {[%emt 00:00:05] [%clk 00:03:04]} 1-0

[Site "Europe Echecs"]

[Event "Championnat d'Europe Rapide"]
[Date "2024.12.08"]
[White "Vuckovic, Aleksandar"]
[Black "Peyrer, Konstantin"]
[WhiteElo "2307"]
[BlackElo "2440"]
[Round "10.34"]
[Result "0-1"]
[TimeControl "900+10"]

1. e4 {[%emt 00:00:01] [%clk 00:15:18]} e5 {[%emt 00:00:02] [%clk 00:15:19]} 2.
Nf3 {[%emt 00:00:02] [%clk 00:15:27]} Nc6 {[%emt 00:00:01] [%clk 00:15:28]} 3.
d4 {[%emt 00:00:01] [%clk 00:15:35]} exd4 {[%emt 00:00:02] [%clk 00:15:36]} 4.
Nxd4 {[%emt 00:00:02] [%clk 00:15:44]} Nf6 {[%emt 00:00:02] [%clk 00:15:44]} 5.
Nxc6 {[%emt 00:00:03] [%clk 00:15:51]} bxc6 {[%emt 00:00:02] [%clk 00:15:52]} 6.
Bd3 {[%emt 00:00:02] [%clk 00:15:59]} d5 {[%emt 00:00:10] [%clk 00:15:52]} 7.
Nc3 {[%emt 00:00:32] [%clk 00:15:37]} Bb4 {[%emt 00:00:12] [%clk 00:15:50]} 8.
exd5 {[%emt 00:00:04] [%clk 00:15:43]} cxd5 {[%emt 00:00:05] [%clk 00:15:55]} 9.
O-O {[%emt 00:00:13] [%clk 00:15:40]} O-O {[%emt 00:00:03] [%clk 00:16:02]} 10.
Bg5 {[%emt 00:00:19] [%clk 00:15:31]} Be6 {[%emt 00:00:17] [%clk 00:15:55]} 11.
Qf3 {[%emt 00:00:36] [%clk 00:15:06]} Be7 {[%emt 00:00:26] [%clk 00:15:38]} 12.
h3 {[%emt 00:01:31] [%clk 00:13:45]} Rb8 {[%emt 00:00:17] [%clk 00:15:32]} 13.
b3 {[%emt 00:00:12] [%clk 00:13:42]} h6 {[%emt 00:00:08] [%clk 00:15:33]} 14.
Bh4 {[%emt 00:00:43] [%clk 00:13:10]} Rb4 {[%emt 00:00:13] [%clk 00:15:30]} 15.
Bg3 {[%emt 00:00:19] [%clk 00:13:00]} Bd6 {[%emt 00:00:07] [%clk 00:15:33]} 16.
a3 {[%emt 00:00:37] [%clk 00:12:34]} Rb8 {[%emt 00:00:09] [%clk 00:15:33]} 17.
b4 {[%emt 00:01:36] [%clk 00:11:09]} Re8 {[%emt 00:01:46] [%clk 00:13:57]} 18.
Rfd1 {[%emt 00:00:13] [%clk 00:11:05]} c6 {[%emt 00:00:37] [%clk 00:13:30]} 19.
Na4 {[%emt 00:00:34] [%clk 00:10:41]} Bxg3 {[%emt 00:01:05] [%clk 00:12:35]} 20.
Qxg3 {[%emt 00:00:13] [%clk 00:10:38]} Nd7 {[%emt 00:00:04] [%clk 00:12:40]} 21.
Rac1 {[%emt 00:01:29] [%clk 00:09:20]} a5 {[%emt 00:00:35] [%clk 00:12:16]} 22.
Qd6 {[%emt 00:00:31] [%clk 00:08:58]} Qg5 {[%emt 00:00:07] [%clk 00:12:19]} 23.
Kh2 {[%emt 00:00:48] [%clk 00:08:20]} Ne5 {[%emt 00:00:07] [%clk 00:12:22]} 24.
Nc5 {[%emt 00:01:31] [%clk 00:06:59]} Qf4+ {[%emt 00:00:05] [%clk 00:12:26]} 25.
Kh1 {[%emt 00:00:09] [%clk 00:06:59]} Nxd3 {[%emt 00:00:05] [%clk 00:12:32]} 0-1

[Site "Europe Echecs"]

[Event "Championnat d'Europe Rapide"]
[Date "2024.12.08"]
[White "Stankovic, Milos"]
[Black "Krallis, Christos"]
[WhiteElo "2462"]
[BlackElo "2383"]
[Round "10.35"]
[Result "1/2-1/2"]
[TimeControl "900+10"]

1. d4 {[%clk 00:15:16]} Nf6 {[%emt 00:00:36] [%clk 00:14:45]} 2. Nf3 {[%emt
00:00:02] [%clk 00:15:23]} d5 {[%emt 00:00:07] [%clk 00:14:49]} 3. Bf4 {[%emt
00:00:03] [%clk 00:15:30]} c5 {[%emt 00:00:10] [%clk 00:14:49]} 4. e3 {[%emt
00:00:05] [%clk 00:15:34]} e6 {[%emt 00:00:10] [%clk 00:14:49]} 5. Nbd2 {[%emt
00:00:18] [%clk 00:15:26]} Qb6 {[%emt 00:00:09] [%clk 00:14:51]} 6. Rb1 {[%emt
00:00:09] [%clk 00:15:26]} cxd4 {[%emt 00:00:12] [%clk 00:14:50]} 7. exd4 {[%emt
00:00:06] [%clk 00:15:30]} Bd7 {[%emt 00:00:03] [%clk 00:14:57]} 8. Be2 {[%emt
00:01:41] [%clk 00:13:59]} Bb5 {[%emt 00:00:08] [%clk 00:14:58]} 9. O-O {[%emt
00:00:04] [%clk 00:14:06]} Bxe2 {[%clk 00:14:58]} 10. Qxe2 {[%emt 00:00:11]
[%clk 00:14:14]} Qa6 {[%emt 00:00:08] [%clk 00:15:00]} 11. Qxa6 {[%emt 00:02:07]
[%clk 00:12:18]} Nxa6 {[%emt 00:00:03] [%clk 00:15:07]} 12. c3 {[%emt 00:00:01]
[%clk 00:12:27]} Be7 {[%emt 00:00:12] [%clk 00:15:04]} 13. Nb3 {[%emt 00:00:41]
[%clk 00:11:56]} Ne4 {[%emt 00:01:33] [%clk 00:13:41]} 14. Rfe1 {[%emt 00:00:26]
[%clk 00:11:41]} Rc8 {[%emt 00:02:12] [%clk 00:11:38]} 15. Nfd2 {[%emt 00:03:56]
[%clk 00:07:55]} Nd6 {[%emt 00:01:01] [%clk 00:10:47]} 16. Nc1 {[%emt 00:00:14]
[%clk 00:07:51]} Nb8 {[%emt 00:00:50] [%clk 00:10:07]} 17. Nd3 {[%emt 00:00:03]
[%clk 00:07:58]} Nd7 {[%emt 00:00:05] [%clk 00:10:11]} 18. Re2 {[%emt 00:00:13]
[%clk 00:07:55]} Nc4 {[%emt 00:01:20] [%clk 00:09:01]} 19. Rbe1 {[%emt 00:00:54]
[%clk 00:07:11]} O-O {[%emt 00:00:05] [%clk 00:09:06]} 20. h3 {[%emt 00:00:19]
[%clk 00:07:02]} b5 {[%emt 00:01:02] [%clk 00:08:14]} 21. a3 {[%emt 00:00:34]
[%clk 00:06:38]} 1/2-1/2

[Site "Europe Echecs"]

[Event "Championnat d'Europe Rapide"]
[Date "2024.12.08"]
[White "Oliinyk, Serafym"]
[Black "Kilic, Eray"]
[WhiteElo "2207"]
[BlackElo "2459"]
[Round "10.36"]
[Result "0-1"]
[TimeControl "900+10"]

1. e4 {[%emt 00:00:02] [%clk 00:15:18]} c5 {[%emt 00:01:22] [%clk 00:13:46]} 2.
Nf3 {[%emt 00:00:14] [%clk 00:15:25]} d6 {[%emt 00:00:01] [%clk 00:13:55]} 3. d4
{[%emt 00:00:01] [%clk 00:15:34]} cxd4 {[%emt 00:00:10] [%clk 00:13:55]} 4. Nxd4
{[%emt 00:00:02] [%clk 00:15:43]} Nf6 {[%emt 00:00:02] [%clk 00:14:03]} 5. Nc3
{[%emt 00:00:02] [%clk 00:15:51]} a6 {[%emt 00:00:01] [%clk 00:14:12]} 6. h3
{[%emt 00:00:09] [%clk 00:15:51]} e5 {[%emt 00:00:03] [%clk 00:14:20]} 7. Nb3
{[%emt 00:00:01] [%clk 00:16:00]} Be6 {[%emt 00:00:07] [%clk 00:14:23]} 8. f4
{[%emt 00:00:02] [%clk 00:16:08]} Nc6 {[%emt 00:00:18] [%clk 00:14:15]} 9. f5
{[%emt 00:00:04] [%clk 00:16:13]} Bxb3 {[%emt 00:00:04] [%clk 00:14:22]} 10.
axb3 {[%emt 00:00:06] [%clk 00:16:17]} d5 {[%emt 00:00:26] [%clk 00:14:06]} 11.
Bg5 {[%emt 00:04:08] [%clk 00:12:19]} d4 {[%emt 00:01:07] [%clk 00:13:10]} 12.
Nd5 {[%emt 00:01:10] [%clk 00:11:19]} Nb4 {[%emt 00:00:02] [%clk 00:13:18]} 13.
Bxf6 {[%emt 00:00:47] [%clk 00:10:42]} gxf6 {[%emt 00:00:02] [%clk 00:13:26]}
14. Nxb4 {[%emt 00:00:24] [%clk 00:10:29]} Bxb4+ {[%emt 00:00:02] [%clk
00:13:34]} 15. Kf2 {[%emt 00:00:04] [%clk 00:10:34]} Qb6 {[%emt 00:01:27] [%clk
00:12:17]} 16. Bd3 {[%emt 00:00:09] [%clk 00:10:36]} O-O {[%emt 00:00:25] [%clk
00:12:02]} 17. Qh5 {[%emt 00:01:32] [%clk 00:09:12]} Bd2 {[%emt 00:00:24] [%clk
00:11:49]} 18. h4 {[%emt 00:00:21] [%clk 00:09:02]} Kh8 {[%emt 00:00:02] [%clk
00:11:57]} 19. g4 {[%emt 00:00:37] [%clk 00:08:35]} Be3+ {[%emt 00:00:22] [%clk
00:11:45]} 20. Kf3 {[%emt 00:00:09] [%clk 00:08:37]} Rg8 {[%emt 00:02:42] [%clk
00:09:13]} 21. Qxf7 {[%emt 00:01:07] [%clk 00:07:40]} Raf8 {[%emt 00:00:03]
[%clk 00:09:18]} 22. Qh5 {[%emt 00:01:30] [%clk 00:06:21]} Rg7 {[%emt 00:00:54]
[%clk 00:08:35]} 23. Rh2 {[%emt 00:00:10] [%clk 00:06:21]} Qc6 {[%emt 00:00:30]
[%clk 00:08:14]} 24. Bc4 {[%emt 00:01:09] [%clk 00:05:23]} Bf4 {[%emt 00:00:22]
[%clk 00:08:02]} 25. Rg2 {[%emt 00:00:04] [%clk 00:05:29]} b5 {[%emt 00:00:31]
[%clk 00:07:41]} 26. Bd5 {[%emt 00:00:02] [%clk 00:05:37]} Qc5 {[%emt 00:00:10]
[%clk 00:07:41]} 27. Rd1 {[%emt 00:01:09] [%clk 00:04:39]} Rd7 {[%emt 00:01:14]
[%clk 00:06:37]} 28. Be6 {[%emt 00:00:15] [%clk 00:04:34]} d3 {[%emt 00:00:13]
[%clk 00:06:33]} 29. g5 {[%emt 00:02:09] [%clk 00:02:35]} Qe3+ {[%emt 00:00:01]
[%clk 00:06:42]} 30. Kg4 {[%emt 00:00:02] [%clk 00:02:42]} Qxe4 {[%emt 00:00:05]
[%clk 00:06:48]} 31. Bxd7 {[%emt 00:00:44] [%clk 00:02:09]} Qxg2# {[%emt
00:00:03] [%clk 00:06:54]} 0-1

[Site "Europe Echecs"]

[Event "Championnat d'Europe Rapide"]
[Date "2024.12.08"]
[White "Saraci, Nderim"]
[Black "Maier, Christian"]
[WhiteElo "2431"]
[BlackElo "2235"]
[Round "10.37"]
[Result "1/2-1/2"]
[TimeControl "900+10"]

1. d4 {[%emt 00:00:02] [%clk 00:15:17]} Nf6 {[%emt 00:00:07] [%clk 00:15:14]} 2.
Nf3 {[%emt 00:00:02] [%clk 00:15:24]} g6 {[%emt 00:00:21] [%clk 00:15:03]} 3. g3
{[%emt 00:00:41] [%clk 00:14:53]} Bg7 {[%emt 00:00:03] [%clk 00:15:11]} 4. Bg2
{[%emt 00:00:03] [%clk 00:15:00]} O-O {[%emt 00:00:03] [%clk 00:15:17]} 5. O-O
{[%emt 00:00:04] [%clk 00:15:06]} d6 {[%emt 00:00:08] [%clk 00:15:19]} 6. c4
{[%emt 00:00:02] [%clk 00:15:13]} Nbd7 {[%emt 00:00:04] [%clk 00:15:26]} 7. Nc3
{[%emt 00:00:02] [%clk 00:15:21]} e5 {[%emt 00:00:03] [%clk 00:15:34]} 8. e4
{[%emt 00:00:03] [%clk 00:15:28]} exd4 {[%emt 00:00:03] [%clk 00:15:42]} 9. Nxd4
{[%emt 00:00:02] [%clk 00:15:35]} Re8 {[%emt 00:00:05] [%clk 00:15:47]} 10. Re1
{[%emt 00:01:15] [%clk 00:14:29]} Nc5 {[%emt 00:00:33] [%clk 00:15:25]} 11. b4
{[%emt 00:04:02] [%clk 00:10:37]} Ne6 {[%emt 00:01:00] [%clk 00:14:35]} 12. Nb3
{[%emt 00:00:22] [%clk 00:10:24]} Nd7 {[%emt 00:00:53] [%clk 00:13:52]} 13. Bb2
{[%emt 00:00:28] [%clk 00:10:06]} Ne5 {[%emt 00:00:27] [%clk 00:13:36]} 14. Qe2
{[%emt 00:00:17] [%clk 00:09:59]} Bd7 {[%emt 00:00:29] [%clk 00:13:16]} 15. Rad1
{[%emt 00:00:05] [%clk 00:10:04]} f5 {[%emt 00:03:00] [%clk 00:10:26]} 16. f4
{[%emt 00:01:42] [%clk 00:08:31]} Ng4 {[%emt 00:00:51] [%clk 00:09:45]} 17. h3
{[%emt 00:01:53] [%clk 00:06:48]} Nh6 {[%emt 00:00:58] [%clk 00:08:57]} 18. c5
{[%emt 00:01:00] [%clk 00:05:59]} Bc6 {[%emt 00:05:09] [%clk 00:03:58]} 19. Na5
{[%emt 00:02:56] [%clk 00:03:11]} Qf6 {[%emt 00:02:19] [%clk 00:01:50]} 20. Nxc6
{[%emt 00:01:18] [%clk 00:02:03]} bxc6 {[%emt 00:00:02] [%clk 00:01:58]} 21. e5
{[%emt 00:01:07] [%clk 00:01:06]} dxe5 {[%emt 00:00:13] [%clk 00:01:54]} 22.
Bxc6 {[%emt 00:00:04] [%clk 00:01:12]} Nxf4 {[%emt 00:01:35] [%clk 00:00:30]}
23. Qc4+ {[%emt 00:00:15] [%clk 00:01:05]} Ne6 {[%emt 00:00:05] [%clk 00:00:35]}
24. Bxa8 {[%emt 00:00:24] [%clk 00:00:51]} Rxa8 {[%clk 00:00:44]} 25. Nd5 {[%emt
00:00:17] [%clk 00:00:44]} Qg5 {[%emt 00:00:05] [%clk 00:00:50]} 26. Qb3 {[%emt
00:00:09] [%clk 00:00:44]} Nf7 {[%emt 00:00:09] [%clk 00:00:52]} 27. Bc1 {[%emt
00:00:38] [%clk 00:00:16]} f4 {[%emt 00:00:13]} 28. Qf3 {[%clk 00:00:24]} Re8
{[%emt 00:00:05] [%clk 00:00:56]} 29. h4 {[%emt 00:00:05] [%clk 00:00:29]} Qh6
{[%emt 00:00:09] [%clk 00:00:57]} 30. Kg2 {[%emt 00:00:06] [%clk 00:00:33]} g5
{[%emt 00:00:04] [%clk 00:01:04]} 31. Qg4 {[%emt 00:00:09] [%clk 00:00:33]} Qg6
{[%emt 00:00:08] [%clk 00:01:06]} 32. hxg5 {[%emt 00:00:15] [%clk 00:00:28]} h5
{[%emt 00:00:07] [%clk 00:01:09]} 33. Qh4 {[%emt 00:00:22] [%clk 00:00:16]}
Nfxg5 {[%emt 00:00:14] [%clk 00:01:04]} 34. Kh1 {[%emt 00:00:03] [%clk
00:00:23]} Nf3 {[%emt 00:00:31] [%clk 00:00:44]} 35. Ne7+ {[%emt 00:00:17] [%clk
00:00:16]} Rxe7 {[%emt 00:00:01] [%clk 00:00:53]} 36. Qxe7 {[%clk 00:00:25]} Qg4
{[%emt 00:00:09] [%clk 00:00:54]} 37. Kg2 {[%emt 00:00:15] [%clk 00:00:20]}
Qxg3+ {[%emt 00:00:06] [%clk 00:00:58]} 38. Kf1 {[%clk 00:00:29]} Qg1+ {[%emt
00:00:25] [%clk 00:00:42]} 39. Ke2 {[%emt 00:00:01] [%clk 00:00:38]} Qg2+ {[%emt
00:00:02] [%clk 00:00:51]} 40. Kd3 {[%emt 00:00:05] [%clk 00:00:42]} Nxe1+
{[%emt 00:00:09] [%clk 00:00:52]} 41. Rxe1 {[%emt 00:00:07] [%clk 00:00:45]}
Qg3+ {[%emt 00:00:12] [%clk 00:00:50]} 42. Kc4 {[%emt 00:00:18] [%clk 00:00:37]}
Qxe1 {[%emt 00:00:09] [%clk 00:00:52]} 43. Qxe6+ {[%emt 00:00:01] [%clk
00:00:45]} Kh7 {[%emt 00:00:03] [%clk 00:00:58]} 44. Qf5+ {[%emt 00:00:12] [%clk
00:00:43]} Kh6 {[%emt 00:00:07] [%clk 00:01:01]} 45. Qe6+ {[%emt 00:00:26] [%clk
00:00:26]} Kh7 {[%emt 00:00:15] [%clk 00:00:57]} 46. Qf5+ {[%emt 00:00:03] [%clk
00:00:34]} Kh6 {[%emt 00:00:02] [%clk 00:01:06]} 47. Qe6+ {[%clk 00:00:42]} Kh7
{[%emt 00:00:03] [%clk 00:01:12]} 1/2-1/2

[Site "Europe Echecs"]

[Event "Championnat d'Europe Rapide"]
[Date "2024.12.08"]
[White "Nakonechnyi, Oleksii"]
[Black "Ghimpu, Samuel-Timotei"]
[WhiteElo "2052"]
[BlackElo "2475"]
[Round "10.38"]
[Result "0-1"]
[TimeControl "900+10"]

1. Nf3 {[%emt 00:00:02] [%clk 00:15:17]} d5 {[%emt 00:00:49] [%clk 00:14:32]} 2.
g3 {[%emt 00:00:02] [%clk 00:15:25]} c5 {[%emt 00:00:05] [%clk 00:14:37]} 3. Bg2
{[%emt 00:00:01] [%clk 00:15:33]} Nc6 {[%emt 00:00:05] [%clk 00:14:42]} 4. d4
{[%emt 00:00:02] [%clk 00:15:42]} cxd4 {[%emt 00:00:12] [%clk 00:14:39]} 5. Nxd4
{[%emt 00:00:05] [%clk 00:15:46]} e6 {[%emt 00:00:03] [%clk 00:14:47]} 6. O-O
{[%emt 00:00:03] [%clk 00:15:52]} Bc5 {[%emt 00:00:02] [%clk 00:14:56]} 7. e3
{[%emt 00:00:10] [%clk 00:15:52]} Nf6 {[%emt 00:00:25] [%clk 00:14:40]} 8. b3
{[%emt 00:00:45] [%clk 00:15:18]} O-O {[%emt 00:00:39] [%clk 00:14:11]} 9. Bb2
{[%emt 00:00:02] [%clk 00:15:26]} Qe7 {[%emt 00:00:19] [%clk 00:14:02]} 10. a3
{[%emt 00:01:00] [%clk 00:14:36]} e5 {[%emt 00:00:32] [%clk 00:13:40]} 11. Nxc6
{[%clk 00:14:37]} bxc6 {[%emt 00:00:11] [%clk 00:13:47]} 12. b4 {[%clk
00:14:35]} Bb6 {[%emt 00:00:37] [%clk 00:13:33]} 13. Nd2 {[%clk 00:14:18]} Bg4
{[%emt 00:00:51] [%clk 00:13:19]} 14. Qc1 {[%clk 00:13:34]} a5 {[%emt 00:02:10]
[%clk 00:12:13]} 15. c4 {[%clk 00:13:34]} Rfc8 {[%emt 00:02:48] [%clk 00:09:44]}
16. c5 {[%emt 00:00:25] [%clk 00:13:19]} Bc7 {[%emt 00:00:03] [%clk 00:09:51]}
17. e4 {[%emt 00:01:04] [%clk 00:12:25]} Rab8 {[%emt 00:01:00] [%clk 00:09:00]}
18. exd5 {[%emt 00:01:00] [%clk 00:11:36]} cxd5 {[%emt 00:00:17] [%clk
00:08:53]} 19. Re1 {[%emt 00:00:07] [%clk 00:11:38]} axb4 {[%emt 00:01:19] [%clk
00:07:44]} 20. axb4 {[%emt 00:00:02] [%clk 00:11:47]} Rxb4 {[%emt 00:00:06]
[%clk 00:07:48]} 21. Ra7 {[%emt 00:00:06] [%clk 00:11:50]} Qf8 {[%emt 00:05:25]
[%clk 00:02:33]} 22. Bxe5 {[%emt 00:03:07] [%clk 00:08:53]} Bxe5 {[%emt
00:00:03] [%clk 00:02:39]} 23. Rxe5 {[%emt 00:00:02] [%clk 00:09:02]} Rxc5
{[%emt 00:00:13] [%clk 00:02:36]} 24. Qa3 {[%emt 00:01:09] [%clk 00:08:02]} Rd4
{[%emt 00:00:52] [%clk 00:01:53]} 25. Nf1 {[%emt 00:00:05] [%clk 00:08:07]} Rc8
{[%emt 00:01:00] [%clk 00:01:03]} 26. Ree7 {[%emt 00:01:17] [%clk 00:07:00]} Be6
{[%emt 00:00:01] [%clk 00:01:12]} 27. Qb2 {[%emt 00:01:06] [%clk 00:06:05]} Rd1
{[%emt 00:00:19] [%clk 00:01:02]} 28. Qb7 {[%emt 00:00:10] [%clk 00:06:05]} h6
{[%emt 00:02:07]} 29. Qb3 {[%clk 00:04:36]} Rdc1 {[%emt 00:00:33] [%clk
00:00:22]} 30. Qb7 {[%emt 00:00:06] [%clk 00:04:41]} Re8 {[%emt 00:00:11] [%clk
00:00:20]} 31. Rxe8 {[%emt 00:00:13] [%clk 00:04:38]} Qxe8 {[%emt 00:00:01]
[%clk 00:00:29]} 32. Ra8 {[%emt 00:00:17] [%clk 00:04:31]} Rc8 {[%emt 00:00:02]
[%clk 00:00:37]} 33. Rxc8 {[%emt 00:00:16] [%clk 00:04:25]} Qxc8 {[%emt
00:00:02] [%clk 00:00:45]} 34. Qxc8+ {[%emt 00:00:22] [%clk 00:04:13]} Bxc8
{[%emt 00:00:01] [%clk 00:00:53]} 35. f3 {[%emt 00:00:32] [%clk 00:03:51]} Kf8
{[%emt 00:00:05] [%clk 00:00:58]} 36. Kf2 {[%emt 00:00:01] [%clk 00:04:01]} Ke7
{[%emt 00:00:20] [%clk 00:00:48]} 37. Ke3 {[%emt 00:00:02] [%clk 00:04:09]} Kd6
{[%clk 00:00:57]} 38. Kd4 {[%emt 00:00:30] [%clk 00:03:49]} Ne8 {[%emt 00:00:06]
[%clk 00:01:01]} 39. Ne3 {[%emt 00:00:18] [%clk 00:03:41]} Nc7 {[%clk 00:01:10]}
40. f4 {[%emt 00:00:01] [%clk 00:03:50]} Nb5+ {[%emt 00:00:22] [%clk 00:00:58]}
41. Kd3 {[%emt 00:00:04] [%clk 00:03:56]} d4 {[%emt 00:00:03] [%clk 00:01:05]}
42. Nc2 {[%emt 00:00:32] [%clk 00:03:34]} Kc5 {[%emt 00:00:15] [%clk 00:01:00]}
43. Bf3 {[%emt 00:00:25] [%clk 00:03:18]} Bf5+ {[%emt 00:00:09] [%clk 00:01:01]}
44. Be4 {[%emt 00:00:01] [%clk 00:03:27]} Bxe4+ {[%emt 00:00:05] [%clk
00:01:06]} 45. Kxe4 {[%emt 00:00:06] [%clk 00:03:32]} Kc4 {[%emt 00:00:01] [%clk
00:01:14]} 46. Ke5 {[%emt 00:00:16] [%clk 00:03:27]} d3 {[%emt 00:00:22] [%clk
00:01:02]} 47. Ne3+ {[%emt 00:00:04] [%clk 00:03:33]} Kc3 {[%emt 00:00:01] [%clk
00:01:11]} 48. Kd5 {[%emt 00:00:18] [%clk 00:03:24]} d2 {[%emt 00:00:03] [%clk
00:01:17]} 49. Kc5 {[%clk 00:03:34]} Kd3 {[%emt 00:00:03] [%clk 00:01:25]} 50.
Nd1 {[%emt 00:00:18] [%clk 00:03:26]} Nc3 {[%emt 00:00:01] [%clk 00:01:34]} 51.
Nf2+ {[%clk 00:03:36]} Ke2 {[%emt 00:00:02] [%clk 00:01:42]} 52. Kd4 {[%emt
00:00:07]} 0-1

[Site "Europe Echecs"]